{"text_format":"1","workbook":"xlsx","n_sheets":11,"sheets":["Présentation","Part 1 (1-3)","Part 1 (2-3)","Part 1 (3-3)","Part 2 (1-2)","Part 2 (2-2)","Part 3 (1-2)","Part 3(2-2)","Points de Jury","Bilan","Listes"],"not_rendered":{"charts":0,"images":29,"macros":1,"external_links":0,"defined_names":3,"comments":0,"pivot_tables":0},"unopened":[],"bounds":{"document_bytes":16777216,"sheet_cells":100000,"rows_first":2000,"rows_last":500,"rows_between":2000,"halvings":0,"cell_chars":16384,"cell_head_chars":4096},"cells_cut":0,"cells_raw":0,"read":"whole","date_system":"1900"}

{"sheet":"Présentation","index":0,"n_rows":8,"n_cols":1,"rows_kept":8,"cut":false,"hidden":false,"merged":[[5,0,6,10],[7,0,18,10]]}
[]
[]
[]
[]
[]
["GRILLE SIAPS"]
[]
["Cette nouvelle version de la grille SIAPS est proposée par la conférence nationale des doyens de médecine et par la conférence des présidents de CNU.\n\nLe score est désormais annuel, et plafonné à 1000 points. Il est décliné sur trois thématiques :\n-       Heures d’enseignement (sur le principe d’1 point par heure d’enseignement)\n-       Responsabilités pédagogiques (le nombre de points attribué est inscrit en face de chaque ligne)\n-       Recherche et innovation en pédagogie (le nombre de points attribué est inscrit en face de chaque ligne)\n\nCe fichier Excel permet aux candidats de déclarer leurs points sur les trois thématiques, et de calculer leur score.\nIl est demandé à l’équipe facultaire de finaliser le calcul du score :\n-       En validant les points déclarés par les candidats,\n-       Et en proposant des Points de jury, entre 0 et 100 points pour chacune des trois thématiques.\n\nLe score SIAPS de l’année, d’un maximum de 1000 points, est calculé automatiquement dans le fichier Excel, par la somme des points déclarés par le candidat et des points de jury, somme qui est plafonnée à\n-       200 points maximum pour les heures d’enseignement,\n-       400 points maximum pour les responsabilités pédagogiques\n-       et 400 points maximum pour la recherche et l’innovation en pédagogie.\n\nNous attirons votre attention sur le fait que ce score a été conçu uniquement comme un outil parmi d’autres, qui pourra être utilisé par les commissions de révision des effectifs des facultés et/ou les sous-sections de CNU pour l'examen des candidatures à une nomination ou une promotion HU."]

{"sheet":"Part 1 (1-3)","index":1,"n_rows":25,"n_cols":7,"rows_kept":25,"cut":false,"hidden":false,"merged":[[1,2,1,5],[2,2,2,5],[3,2,3,6],[4,2,4,6]]}
[null,"NOUVELLE GRILLE SIAPS"]
[null,"Nom",null,null,null,null,"page 1/9"]
[null,"Prénom"]
[null,"Discipline (sous-section CNU) - Utilisez le menu déroulant"]
[null,"UFR - Utilisez le menu déroulant"]
["1. HEURES D'ENSEIGNEMENT"]
[null,null,"2023-2024","2022-2023","2021-2022","2020-2021","2019-20"]
["PREMIER CYCLE"]
["PASS - Nombre d'heures de cours (ED et TD)"]
["DFGSM - Nombre d'heures de cours (ED et TD)"]
["Licence, Master, LAS - Nombre d'heures de cours (ED et TD)"]
["Autres projets 1er cycle - Nombre d'heures de cours (ED et TD)"]
[]
["DEUXIEME CYCLE"]
["DFASM - Nombre d'heures de cours (ED et TD) "]
[]
[]
["conférences d'internat - nombre d'heures"]
["Autres projets 2ème cycle - Nombre d'heures de cours (ED et TD)"]
["Autres composantes unniversitaires ou écoles d'ingénieur - Nombre d'heures de cours (ED et TD)"]
[]
["ENSEIGNEMENT EN SERVICE HOSPITALIER"]
["Staff d'enseignement et bibliographie - Nombre d'heures"]
["Encadrement de séances de simulation - Nombre d'heures"]
["ECOS de service - Nombre d'heures"]

{"sheet":"Part 1 (2-3)","index":2,"n_rows":23,"n_cols":7,"rows_kept":23,"cut":false,"hidden":false,"merged":[[3,2,3,6],[4,2,4,6],[1,2,1,5],[2,2,2,5]]}
[null,"NOUVELLE GRILLE SIAPS"]
[null,"Nom",{"$f":"'Part 1 (1-3)'!C2","v":0},null,null,null,"page 2/9"]
[null,"Prénom",{"$f":"'Part 1 (1-3)'!C3","v":0}]
[null,"Discipline (sous-section CNU)",{"$f":"'Part 1 (1-3)'!C4","v":0}]
[null,"UFR",{"$f":"'Part 1 (1-3)'!C5","v":0}]
["1. HEURES D'ENSEIGNEMENT"]
[null,null,"2023-2024","2022-2023","2021-2022","2020-2021","2019-20"]
["TROISIEME CYCLE, FORMATION CONTINUE"]
["DES local, y compris cours dispensés au sein d'un service hospitalier - Nombre d'heures de cours (ED et TD) "]
["DES Régional - Nombre d'heures de cours (ED et TD) "]
["DES National - Nombre d'heures de cours (ED et TD) "]
["DU-DIU, FST et options, et cours, ED et TD d'audience nationale - Nombre d'heures de cours (ED et TD) "]
["EPU non rémunérés : compter 4 heures pour 1 EPU - Nombre d'heures de cours"]
["Cours programme de DPC - Nombre d'heures de cours "]
["Cours donnés dans le cadre d'un projet pédagogique auprès d'étudiants en 3e cycle - Nombre d'heures de cours (ED et TD) "]
["Cours d'audience nationale ou internationale - Nombre d'heures de cours (ED et TD) "]
["Formation des formateurs (CCA, MCUPH, PUPH, PA, moniteurs etc) - Nombre d'heures de cours (ED et TD) "]
[]
["ECOLES PARAMEDICALES"]
["Ecoles paramédicales - Nombre d'heures de cours (ED et TD) "]
[]
["CREATION DE RESSOURCES PEDAGOGIQUES"]
["Cours postés en ligne pour une diffusion uniquement à distance - Nombre d'heures de cours (ED et TD): MOOC, webinaires, etc. "]

{"sheet":"Part 1 (3-3)","index":3,"n_rows":20,"n_cols":7,"rows_kept":20,"cut":false,"hidden":false,"merged":[[1,2,1,5],[2,2,2,5],[3,2,3,6],[4,2,4,6]]}
[null,"NOUVELLE GRILLE SIAPS"]
[null,"Nom",{"$f":"'Part 1 (1-3)'!C2","v":0},null,null,null,"page 3/9"]
[null,"Prénom",{"$f":"'Part 1 (1-3)'!C3","v":0}]
[null,"Discipline (sous-section CNU)",{"$f":"'Part 1 (1-3)'!C4","v":0}]
[null,"UFR",{"$f":"'Part 1 (1-3)'!C5","v":0}]
["1. HEURES D'ENSEIGNEMENT"]
[null,null,"2023-2024","2022-2023","2021-2022","2020-2021","2019-20"]
["EVALUATION"]
["Organisateur d'enseignement avec patient expert - Nombre d'heures"]
["Nombre de stations ECOS rédigées (compter 3h par station locale et 6h par station nationale)"]
["Préparation pour évaluation locale  (PASS-LAS, 1er Cycle, 2e cycle, 3e cycle, Masters, paramédical etc) (compter 1h pour 1DP ou 15 QI ou 5 TCS ou 1 station d'ECOS)"]
["Préparation pour session ou évaluation en Lecture critique d'article (compter 6h pour 1 session ou évalutaion de LCA)"]
["Préparation pour évaluation régionale \n(compter 2h pour 1DP ou 15 QI ou 5 TCS ou 1 station d'ECOS)"]
["Préparation pour évaluation nationale \n(compter 3h pour 1DP ou 15 QI ou 5 TCS ou 1 station d'ECOS)"]
["Correction d'épreuves rédactionnelles (1 heure pour 20 copies)"]
["Participations à un jury (jury de fin d'année, jury de thèse, jury de master, jury de DES/FST/DESC, Jury PASS-LAS - Nombre d'heures"]
["Post-traitement d'épreuves - Nombre d'heures"]
["Echanges en ligne sur des forums pédagogiques avec les étudiants - Nombre d'heures"]
["Groupe d'accueil des étudiants en difficulté - Nombre d'heures"]
["Surveillance pour examens local ou national - Nombre d'heures"]

{"sheet":"Part 2 (1-2)","index":4,"n_rows":39,"n_cols":22,"rows_kept":39,"cut":false,"hidden":false,"merged":[[6,16,7,18],[6,19,7,21],[1,2,1,5],[2,2,2,5],[6,7,7,9],[6,10,7,12],[6,13,7,15],[3,2,3,6],[4,2,4,6]]}
[null,"NOUVELLE GRILLE SIAPS"]
[null,"Nom",{"$f":"'Part 1 (1-3)'!C2","v":0},null,null,null,"page 4/9"]
[null,"Prénom",{"$f":"'Part 1 (1-3)'!C3","v":0}]
[null,"Discipline (sous-section CNU)",{"$f":"'Part 1 (1-3)'!C4","v":0}]
[null,"UFR",{"$f":"'Part 1 (1-3)'!C5","v":0}]
["2. RESPONSABILITES PEDAGOGIQUES"]
[null,null,"2023-2024","2022-2023","2021-2022","2020-2021","2019-20","2023-2024",null,null,"2022-2023",null,null,"2021-2022",null,null,"2020-2021",null,null,"2020-2021"]
["RESPONSABILITES PEDAGOGIQUES"]
["Doyen, direction d'UFR, vice-doyen chargé de la pédagogie",100,null,null,null,null,null,false,{"$f":"H9","v":false},{"$f":"IF(I9=TRUE,B9,0)","v":0},false,{"$f":"K9","v":false},{"$f":"IF(L9=TRUE,B9,0)","v":0},false,{"$f":"N9","v":false},{"$f":"IF(O9=TRUE,B9,0)","v":0},false,{"$f":"Q9","v":false},{"$f":"IF(R9=TRUE,B9,0)","v":0},false,{"$f":"T9","v":false},{"$f":"IF(T9=TRUE,B9,0)","v":0}]
["Direction d'un département de pédagogie médicale",80,null,null,null,null,null,false,false,0,false,false,0,false,false,0,false,{"$f":"Q10","v":false},{"$f":"IF(R10=TRUE,B10,0)","v":0},false,{"$f":"T10","v":false},{"$f":"IF(T10=TRUE,B10,0)","v":0}]
["Direction d'un centre de simulation",80,null,null,null,null,null,false,false,0,false,false,0,false,false,0,false,false,0,false,false,0]
["Direction d'une école paramédicale",80,null,null,null,null,null,false,false,0,false,false,0,false,false,0,false,false,0,false,false,0]
["Responsable de cycle UFR ou responsable PASS-LAS",60,null,null,null,null,null,false,false,0,false,false,0,false,false,0,false,false,0,false,false,0]
["Responsable de mention de licence ou de master",60,null,null,null,null,null,false,false,0,false,false,0,false,false,0,false,false,0,false,false,0]
[]
["Responsable d'année UFR",40,null,null,null,null,null,false,{"$f":"H16","v":false},{"$f":"IF(I16=TRUE,B16,0)","v":0},false,{"$f":"K16","v":false},{"$f":"IF(L16=TRUE,B16,0)","v":0},false,{"$f":"N16","v":false},{"$f":"IF(O16=TRUE,B16,0)","v":0},false,false,0,false,false,0]
["Responsable d'UE UFR, Licence ou Master",40,null,null,null,null,null,false,false,{"$f":"IF(I17=TRUE,B17,0)","v":0},false,false,{"$f":"IF(L17=TRUE,B17,0)","v":0},false,false,{"$f":"IF(O17=TRUE,B17,0)","v":0},false,false,0,false,false,0]
["Responsable d'UE d'école paramédicale",40,null,null,null,null,null,false,false,{"$f":"IF(I18=TRUE,B18,0)","v":0},false,false,{"$f":"IF(L18=TRUE,B18,0)","v":0},false,false,{"$f":"IF(O18=TRUE,B18,0)","v":0},false,false,0,false,false,0]
["Chargé de mission UFR en pédagogie médicale",40,null,null,null,null,null,false,false,{"$f":"IF(I19=TRUE,B19,0)","v":0},false,false,{"$f":"IF(L19=TRUE,B19,0)","v":0},false,false,{"$f":"IF(O19=TRUE,B19,0)","v":0},false,false,0,false,false,0]
["Membre d'une commission pédagogique facultaire",40,null,null,null,null,null,false,false,{"$f":"IF(I20=TRUE,B20,0)","v":0},false,false,{"$f":"IF(L20=TRUE,B20,0)","v":0},false,false,{"$f":"IF(O20=TRUE,B20,0)","v":0},false,false,0,false,false,0]
[]
["Animation d'un groupe de travail local en pédagogie médicale",40,null,null,null,null,null,false,{"$f":"H22","v":false},{"$f":"IF(I22=TRUE,B22,0)","v":0},false,{"$f":"K22","v":false},{"$f":"IF(L22=TRUE,B22,0)","v":0},false,{"$f":"N22","v":false},{"$f":"IF(O22=TRUE,B22,0)","v":0},false,false,0,false,false,0]
["Participation à un groupe de travail local en pédagogie médicale",20,null,null,null,null,null,false,false,0,false,false,0,false,false,0,false,false,0,false,false,0]
["Animation d'un groupe de travail régional en pédagogie médicale",60,null,null,null,null,null,false,false,0,false,false,0,false,false,0,false,false,0,false,false,0]
["Participation à un groupe de travail régional en pédagogie médicale",30,null,null,null,null,null,false,false,0,false,false,0,false,false,0,false,false,0,false,false,0]
["Animation d'un groupe de travail national en pédagogie médicale",80,null,null,null,null,null,false,false,0,false,false,0,false,false,0,false,false,0,false,false,0]
["Participation à un groupe de travail national en pédagogie médicale",40,null,null,null,null,null,false,false,0,false,false,0,false,false,0,false,false,0,false,false,0]
[]
["ECOS"]
["Certification ECOS",10,null,null,null,null,null,false,{"$f":"H30","v":false},{"$f":"IF(I30=TRUE,B30,0)","v":0},false,{"$f":"K30","v":false},{"$f":"IF(L30=TRUE,B30,0)","v":0},false,{"$f":"N30","v":false},{"$f":"IF(O30=TRUE,B30,0)","v":0},false,{"$f":"Q30","v":false},{"$f":"IF(R30=TRUE,B30,0)","v":0},false,{"$f":"T30","v":false},{"$f":"IF(U30=TRUE,B30,0)","v":0}]
["Examinateur ECOS Local",10,null,null,null,null,null,false,{"$f":"H31","v":false},{"$f":"IF(I31=TRUE,B31,0)","v":0},false,{"$f":"K31","v":false},{"$f":"IF(L31=TRUE,B31,0)","v":0},false,{"$f":"N31","v":false},{"$f":"IF(O31=TRUE,B31,0)","v":0},false,{"$f":"Q31","v":false},{"$f":"IF(R31=TRUE,B31,0)","v":0},false,{"$f":"T31","v":false},{"$f":"IF(U31=TRUE,B31,0)","v":0}]
["Examinateur ECOS National",20,null,null,null,null,null,false,false,0,false,false,0,false,false,0,false,false,0,false,false,0]
["Formateur ECOS à l'échelle d'une faculté",40,null,null,null,null,null,false,false,0,false,false,0,false,false,0,false,false,0,false,false,0]
["Coordinateur ECOS à l'échelle d'une faculté",60,null,null,null,null,null,false,false,0,false,false,0,false,false,0,false,false,0,false,false,0]
["Recruteur/formateur de patients simulés",20,null,null,null,null,null,false,false,0,false,false,0,false,false,0,false,false,0,false,false,0]
["Coordinateur de patients simulés à l'échelle d'une faculté",60,null,null,null,null,null,false,false,0,false,false,0,false,false,0,false,false,0,false,false,0]
[]
["Hybridation des contenus"]
["Formation à l'enseignement Hybride",10,null,null,null,null,null,false,{"$f":"H39","v":false},{"$f":"IF(I39=TRUE,B39,0)","v":0},false,{"$f":"K39","v":false},{"$f":"IF(L39=TRUE,B39,0)","v":0},false,{"$f":"N39","v":false},{"$f":"IF(O39=TRUE,B39,0)","v":0},false,{"$f":"Q39","v":false},{"$f":"IF(R39=TRUE,B39,0)","v":0},false,{"$f":"T39","v":false},{"$f":"IF(U39=TRUE,B39,0)","v":0}]

{"sheet":"Part 2 (2-2)","index":5,"n_rows":270,"n_cols":22,"rows_kept":270,"cut":false,"hidden":false,"merged":[[190,2,190,3],[251,2,251,3],[252,2,252,6],[253,2,253,6],[206,2,206,3],[207,2,207,3],[208,2,208,6],[209,2,209,6],[225,2,225,3],[226,2,226,3],[227,2,227,6],[228,2,228,6],[250,2,250,3],[193,2,193,6],[191,2,191,3],[192,2,192,6],[6,16,7,18],[6,19,7,21],[1,2,1,5],[2,2,2,5],[3,2,3,6],[4,2,4,6],[6,7,7,9],[6,13,7,15],[6,10,7,12]]}
[null,"NOUVELLE GRILLE SIAPS"]
[null,"Nom",{"$f":"'Part 1 (1-3)'!C2","v":0},null,null,null,"page 5/9"]
[null,"Prénom",{"$f":"'Part 1 (1-3)'!C3","v":0}]
[null,"Discipline (sous-section CNU)",{"$f":"'Part 1 (1-3)'!$C$4","v":0}]
[null,"UFR",{"$f":"'Part 1 (1-3)'!$C$5","v":0}]
["2. RESPONSABILITES PEDAGOGIQUES"]
[null,null,"2023-2024","2022-2023","2021-2022","2020-2021","2019-20","2023-2024",null,null,"2022-2023",null,null,"2021-2022",null,null,"2020-2021",null,null,"2019-2020"]
["RESPONSABILITES PEDAGOGIQUES"]
["Président, vice-président ou responsable pédagogique de collège national de spécialité",100,null,null,null,null,null,false,{"$f":"H9","v":false},{"$f":"IF(I9=TRUE,B9,0)","v":0},false,{"$f":"K9","v":false},{"$f":"IF(L9=TRUE,B9,0)","v":0},false,{"$f":"N9","v":false},{"$f":"IF(O9=TRUE,B9,0)","v":0},false,{"$f":"Q9","v":false},{"$f":"IF(R9=TRUE,B9,0)","v":0},false,{"$f":"T9","v":false},{"$f":"IF(U9=TRUE,B9,0)","v":0}]
["Chargé de mission national en pédagogie médicale: Référent LISA, Rédacteur LISA, Référentiels de compétences, …",80,null,null,null,null,null,false,false,{"$f":"IF(I10=TRUE,B10,0)","v":0},false,false,{"$f":"IF(L10=TRUE,B10,0)","v":0},false,false,{"$f":"IF(O10=TRUE,B10,0)","v":0},false,{"$f":"Q10","v":false},{"$f":"IF(R10=TRUE,B10,0)","v":0},null,{"$f":"T10","v":0},{"$f":"IF(U10=TRUE,B10,0)","v":0}]
["Coordonnateur d'un ouvrage de référence en pédagogie médicale (référentiels de collèges…)",80,null,null,null,null,null,false,false,0,false,false,0,false,false,0,null,0,0,null,0,0]
["Coordonnateur d'un programme de formation ou d'évaluation annuel d'audience nationale ou internationale",80,null,null,null,null,null,false,false,0,false,false,0,false,false,0,null,0,0,null,0,0]
["Membre d'une commission ou d'un jury national (CNCI, PH, VAE…)",40,null,null,null,null,null,false,false,0,false,false,0,false,false,0,null,0,0,null,0,0]
[]
["Coordonnateur national d'option ou de FST",80,null,null,null,null,null,false,false,0,false,false,0,false,false,0,null,0,0,null,0,0]
["Coordonnateur régional  de DES ou de FST",80,null,null,null,null,null,false,false,0,false,false,0,false,false,0,null,0,0,null,0,0]
["Coordonnateur local de DES ou de FST, référent facultaire de spécialité",40,null,null,null,null,null,false,false,0,false,false,0,false,false,0,null,0,0,null,0,0]
["Responsable d'un atelier de simulation avec évaluation",40,null,null,null,null,null,false,false,0,false,false,0,false,false,0,false,false,0,null,0,0]
[]
["Responsable de DIU ou de formation à rayonnement national",60,null,null,null,null,null,false,false,0,false,false,0,false,false,0,null,0,0,null,0,0]
["Responsable de DU ou de formation locale",40,null,null,null,null,null,false,false,0,false,false,0,false,false,0,null,0,0,false,false,0]
[]
["Coordonnateur de cours, ED et TD d'audience internationale",60,null,null,null,null,null,false,false,0,false,false,0,false,false,0,null,0,0,false,false,0]
[]
["CNU"]
["Membre de sous section",40,null,null,null,null,null,false,{"$f":"H26","v":false},{"$f":"IF(I26=TRUE,B26,0)","v":0},false,{"$f":"K26","v":false},{"$f":"IF(L26=TRUE,B26,0)","v":0},false,{"$f":"N26","v":false},{"$f":"IF(O26=TRUE,B26,0)","v":0},false,false,0,false,false,0]
["Responsable de sous-section",60,null,null,null,null,null,false,false,0,false,false,0,false,false,0,null,0,0,null,0,0]
[]
[]
[]
[]
[]
[]
[]
[]
[]
[]
[]
[]
[]
[]
[]
[]
[]
[]
[]
[]
[]
[]
[]
[]
[]
[]
[]
[]
[]
[]
[]
[]
[]
[]
[]
[]
[]
[]
[]
[]
[]
[]
[]
[]
[]
[]
[]
[]
[]
[]
[]
[]
[]
[]
[]
[]
[]
[]
[]
[]
[]
[]
[]
[]
[]
[]
[]
[]
[]
[]
[]
[]
[]
[]
[]
[]
[]
[]
[]
[]
[]
[]
[]
[]
[]
[]
[]
[]
[]
[]
[]
[]
[]
[]
[]
[]
[]
[]
[]
[]
[]
[]
[]
[]
[]
[]
[]
[]
[]
[]
[]
[]
[]
[]
[]
[]
[]
[]
[]
[]
[]
[]
[]
[]
[]
[]
[]
[]
[]
[]
[]
[]
[]
[]
[]
[]
[]
[]
[]
[]
[]
[]
[]
[]
[]
[]
[]
[]
[]
[]
[]
[]
[]
[]
[]
[]
[]
[]
[]
[]
[]
[]
[]
["NOUVELLE GRILLE SIAPS ","Nom",{"$f":"#REF!","v":{"$error":"#REF!"}},null,null,null,"page 6/9"]
[null,"Prénom",{"$f":"#REF!","v":{"$error":"#REF!"}}]
[null,"Discipline (sous-section CNU)",{"$f":"#REF!","v":{"$error":"#REF!"}}]
[null,"UFR",{"$f":"#REF!","v":{"$error":"#REF!"}}]
["3. RECHERCHE ET INNOVATION EN PEDAGOGIE MEDICALE"]
[null,null,"2021-22","2020-21",null,null,"2019-20"]
["PRODUCTION SCIENTIFIQUE EN PEDAGOGIE"]
["Publications en pédagogie médicale d'audience internationale (Compter 60 points pour chaque article publié)"]
["Publications en pédagogie médicale d'audience nationale (Compter 40 points pour chaque article publié)"]
["Nombre de chapitres de livres de référence (référentiels de collège) (Compter 40 points pour chaque chapitre publié)"]
["Communications en pédagogie médicale d'audience internationale\n(Compter 40 points pour chaque communication ou poster)"]
["Communications en pédagogie médicale d'audience nationale\n(Compter 20 points pour chaque communication ou poster)"]
["Rédaction d'un mémoire de pédagogie (Master, DU, DIU, Préceptorat)",100]
["Encadrement d'un mémoire de pédagogie (Master, DU, DIU, Préceptorat)",20]
["Mobilité pour pédagogie médicale: compter 10 points par mois de mobilité"]
[]
["NOUVELLE GRILLE SIAPS ","Nom",{"$f":"#REF!","v":{"$error":"#REF!"}},null,null,null,"page 7/9"]
[null,"Prénom",{"$f":"#REF!","v":{"$error":"#REF!"}}]
[null,"Discipline (sous-section CNU)",{"$f":"#REF!","v":{"$error":"#REF!"}}]
[null,"UFR",{"$f":"#REF!","v":{"$error":"#REF!"}}]
["3. RECHERCHE ET INNOVATION EN PEDAGOGIE MEDICALE"]
[null,null,"2021-22","2020-21",null,null,"2019-20"]
["INNOVATIONS PEDAGOGIQUES"]
["Obtention d'un financement pour un projet pédagogique de plus de 50.000 euros",100]
["Obtention d'un financement pour un projet pédagogique de moins de 50.000 euros",80]
["Obtention d'un financement pour un projet pédagogique de moins de 5.000 euros",40]
[]
["création ou animation d'un programme d'enseignement innovant à l'échelle d'une UFR",100]
["création ou animation d'un programme d'enseignement innovant à l'échelle d'une filière ",80]
["création ou animation d'un programme d'enseignement innovant à l'échelle d'une UE",60]
[]
["création ou animation d'un programme d'enseignement innovant à l'échelle nationale d'une spécialité",100]
["création ou animation d'un programme d'enseignement innovant à l'échelle régionale d'une spécialité",80]
["création ou animation d'un programme d'enseignement innovant à l'échelle locale d'une spécialité",60]
[]
["NOUVELLE GRILLE SIAPS ","Nom",{"$f":"#REF!","v":{"$error":"#REF!"}},null,null,null,"page 8/9"]
[null,"Prénom",{"$f":"#REF!","v":{"$error":"#REF!"}}]
[null,"Discipline (sous-section CNU)",{"$f":"#REF!","v":{"$error":"#REF!"}}]
[null,"UFR",{"$f":"#REF!","v":{"$error":"#REF!"}}]
["POINTS DE JURY: HEURES D'ENSEIGNEMENT",null,"2021-22","2020-21",null,null,"2019-20"]
["Cet enseignant produit des enseignements de qualité exceptionnelle",100]
["Cet enseignant fait partie des meilleurs enseignants de l'institution",80]
["Cet enseignant est remarqué pour la qualité de ses enseignements",60]
["Cet enseignant est apprécié par certains étudiants pour la qualité de ses enseignements",40]
["Cet enseignant donne globalement satisfaction pour la qualité de ses enseignements",20]
["Pas de points de jury",0]
["POINTS DE JURY: RESPONSABILITES PEDAGOGIQUES"]
["Une grande partie de l'action pédagogique de l'institution repose sur cet enseignant",100]
["Cet enseignant a un engagement déterminant pour l'institution",80]
["Cet enseignement prend des initiatives significatives pour l'institution",60]
["Cet enseignant a un engagement qui va au-delà de ses fonctions statutaires",40]
["Cet enseignant donne satisfaction dans ses fonctions statutaires",20]
["Pas de points de jury",0]
["POINTS DE JURY: INNOVATIONS PEDAGOGIQUES"]
["Cet enseignant a un engagement exceptionnel pour l'institution en matière d'innovation et/ou de recherche en pédagogie",100]
["Cet enseignant a un engagement déterminant pour l'institution en matière d'innovation et/ou de recherche en pédagogie",80]
["Cet enseignant prend des initiatives intéressantes en matière d'innovation et/ou de recherche en pédagogie",60]
["Cet enseignant est un bon relai auprès de ses collègues en matière d'innovation et/ou de recherche en pédagogie médicale",40]
["Cet enseignant a su s'approprier des programmes d'innovation et/ou de recherche en pédagogie portés par l'institution",20]
["Pas de points de jury",0]
["NOUVELLE GRILLE SIAPS ","Nom",{"$f":"#REF!","v":{"$error":"#REF!"}},null,null,null,"page 9/9"]
[null,"Prénom",{"$f":"#REF!","v":{"$error":"#REF!"}}]
[null,"Discipline (sous-section CNU)",{"$f":"#REF!","v":{"$error":"#REF!"}}]
[null,"UFR",{"$f":"#REF!","v":{"$error":"#REF!"}}]
[]
[null,null,"2021-22","2020-21",null,null,"2019-20"]
[]
["TOTAL HEURES D'ENSEIGNEMENT",null,{"$f":"SUM(#REF!)+SUM(#REF!)+SUM(#REF!)","v":{"$error":"#REF!"}},{"$f":"SUM(#REF!)+SUM(#REF!)+SUM(#REF!)","v":{"$error":"#REF!"}},null,null,{"$f":"SUM(#REF!)+SUM(#REF!)+SUM(#REF!)","v":{"$error":"#REF!"}}]
["Points de jury heures d'enseignement",null,{"$f":"SUM(C231:C236)","v":0},{"$f":"SUM(D231:D236)","v":0},null,null,{"$f":"SUM(G231:G236)","v":0}]
["Total retenu heures d'enseignement (Max = 200)",null,{"$f":"IF((C258+C259)<200,(C258+C259),200)","v":{"$error":"#REF!"}},{"$f":"IF((D258+D259)<200,(D258+D259),200)","v":{"$error":"#REF!"}},null,null,{"$error":"#REF!"}]
[]
["TOTAL RESPONSABILITES PEDAGOGIQUES",null,{"$f":"SUM(#REF!)+SUM(C9:C23)","v":{"$error":"#REF!"}},{"$f":"SUM(#REF!)+SUM(D9:D23)","v":{"$error":"#REF!"}},null,null,{"$f":"SUM(#REF!)+SUM(G9:G23)","v":{"$error":"#REF!"}}]
["Points de jury Responsabilités pédagogiques",null,{"$f":"SUM(C238:C243)","v":0},{"$f":"SUM(D238:D243)","v":0},null,null,{"$f":"SUM(G238:G243)","v":0}]
["Total retenu Responsabilités pédagogiques (Max = 400)",null,{"$f":"IF((C262+C263)<400,(C262+C263),400)","v":{"$error":"#REF!"}},{"$f":"IF((D262+D263)<400,(D262+D263),400)","v":{"$error":"#REF!"}},null,null,{"$error":"#REF!"}]
[]
["TOTAL INNOVATIONS PEDAGOGIQUES",null,{"$f":"SUM(C198:C205)+SUM(C214:C224)","v":0},{"$f":"SUM(D198:D205)+SUM(D214:D224)","v":0},null,null,{"$f":"SUM(G198:G205)+SUM(G214:G224)","v":0}]
["Points de jury Innovations pédagogiques",null,{"$f":"SUM(C245:C250)","v":0},{"$f":"SUM(D245:D250)","v":0},null,null,{"$f":"SUM(G245:G250)","v":0}]
["Total retenu Innovations pédagogiques (Max = 400)",null,{"$f":"IF((C266+C267)<400,(C266+C267),400)","v":0},{"$f":"IF((D266+D267)<400,(D266+D267),400)","v":0},null,null,0]
[]
["SCORE SIAPS RETENU (Max = 1000)",null,{"$f":"C268+C264+C260","v":{"$error":"#REF!"}},{"$f":"D268+D264+D260","v":{"$error":"#REF!"}},null,null,{"$error":"#REF!"}]

{"sheet":"Part 3 (1-2)","index":6,"n_rows":16,"n_cols":22,"rows_kept":16,"cut":false,"hidden":false,"merged":[[6,19,7,21],[6,7,7,9],[6,10,7,12],[6,13,7,15],[1,2,1,3],[2,2,2,3],[3,2,3,6],[4,2,4,6],[6,16,7,18]]}
[null,"NOUVELLE GRILLE SIAPS"]
[null,"Nom",{"$f":"'Part 1 (1-3)'!C2","v":0},null,null,null,"page 6/9"]
[null,"Prénom",{"$f":"'Part 1 (1-3)'!C3","v":0}]
[null,"Discipline (sous-section CNU)",{"$f":"'Part 1 (1-3)'!C4","v":0}]
[null,"UFR",{"$f":"'Part 1 (1-3)'!C5","v":0}]
["3. RECHERCHE ET INNOVATION EN PEDAGOGIE MEDICALE"]
[null,null,"2023-2024","2022-2023","2021-2022","2020-2021","2019-20","2023-2024",null,null,"2022-2023",null,null,"2021-2022",null,null,"2020-2021",null,null,"2019-2020"]
["PRODUCTION SCIENTIFIQUE EN PEDAGOGIE"]
["Publications en pédagogie médicale d'audience internationale (Compter 60 points pour chaque article publié)"]
["Publications en pédagogie médicale d'audience nationale (Compter 40 points pour chaque article publié)"]
["Nombre de chapitres de livres de référence (référentiels de collège) (Compter 40 points pour chaque chapitre publié)"]
["Communications en pédagogie médicale d'audience internationale\n(Compter 40 points pour chaque communication ou poster)"]
["Communications en pédagogie médicale d'audience nationale\n(Compter 20 points pour chaque communication ou poster)"]
["Rédaction d'un mémoire de pédagogie (Master, DU, DIU, Préceptorat)",100,null,null,null,null,null,false,{"$f":"H14","v":false},{"$f":"IF(I14=TRUE,B14,0)","v":0},false,{"$f":"K14","v":false},{"$f":"IF(L14=TRUE,B14,0)","v":0},false,{"$f":"N14","v":false},{"$f":"IF(O14=TRUE,B14,0)","v":0},false,{"$f":"Q14","v":false},{"$f":"IF(R14=TRUE,B14,0)","v":0},false,{"$f":"T14","v":false},{"$f":"IF(U14=TRUE,B14,0)","v":0}]
["Encadrement d'un mémoire de pédagogie (Master, DU, DIU, Préceptorat)",20,null,null,null,null,null,false,false,{"$f":"IF(I15=TRUE,B15,0)","v":0},false,false,{"$f":"IF(L15=TRUE,B15,0)","v":0},false,false,{"$f":"IF(O15=TRUE,B15,0)","v":0},false,{"$f":"Q15","v":false},{"$f":"IF(R15=TRUE,B15,0)","v":0},false,{"$f":"T15","v":false},{"$f":"IF(U15=TRUE,B15,0)","v":0}]
["Mobilité pour pédagogie médicale: compter 10 points par mois de mobilité"]

{"sheet":"Part 3(2-2)","index":7,"n_rows":19,"n_cols":22,"rows_kept":19,"cut":false,"hidden":false,"merged":[[6,10,7,12],[6,13,7,15],[6,16,7,18],[6,19,7,21],[1,2,1,3],[2,2,2,3],[3,2,3,6],[4,2,4,6],[6,7,7,9]]}
[null,"NOUVELLE GRILLE SIAPS"]
[null,"Nom",{"$f":"'Part 1 (1-3)'!C2","v":0},null,null,null,"page 7/9"]
[null,"Prénom",{"$f":"'Part 1 (1-3)'!C3","v":0}]
[null,"Discipline (sous-section CNU)",{"$f":"'Part 1 (1-3)'!C4","v":0}]
[null,"UFR",{"$f":"'Part 1 (1-3)'!C5","v":0}]
["3. RECHERCHE ET INNOVATION EN PEDAGOGIE MEDICALE"]
[null,null,"2023-2024","2022-2023","2021-2022","2020-2021","2019-20","2023-2024",null,null,"2022-2023",null,null,"2021-2022",null,null,"2020-2021",null,null,"2019-2020"]
["INNOVATIONS PEDAGOGIQUES"]
["Obtention d'un financement pour un projet pédagogique de plus de 50.000 euros",100,null,null,null,null,null,false,{"$f":"H9","v":false},{"$f":"IF(I9=TRUE,B9,0)","v":0},false,{"$f":"K9","v":false},{"$f":"IF(L9=TRUE,B9,0)","v":0},false,{"$f":"N9","v":false},{"$f":"IF(O9=TRUE,B9,0)","v":0},false,{"$f":"Q9","v":false},{"$f":"IF(R9=TRUE,B9,0)","v":0},false,{"$f":"T9","v":false},{"$f":"IF(U9=TRUE,B9,0)","v":0}]
["Obtention d'un financement pour un projet pédagogique de moins de 50.000 euros",80,null,null,null,null,null,false,false,{"$f":"IF(I10=TRUE,B10,0)","v":0},false,false,{"$f":"IF(L10=TRUE,B10,0)","v":0},false,false,{"$f":"IF(O10=TRUE,B10,0)","v":0},false,{"$f":"Q10","v":false},{"$f":"IF(R10=TRUE,B10,0)","v":0},false,{"$f":"T10","v":false},{"$f":"IF(U10=TRUE,B10,0)","v":0}]
["Obtention d'un financement pour un projet pédagogique de moins de 5.000 euros",40,null,null,null,null,null,false,false,0,false,false,0,false,false,0,false,false,0,false,false,0]
[]
["Création ou animation d'un programme d'enseignement innovant à l'échelle d'une UFR",100,null,null,null,null,null,false,false,0,false,false,0,false,false,0,false,false,0,false,false,0]
["Création ou animation d'un programme d'enseignement innovant à l'échelle d'une filière ",80,null,null,null,null,null,false,false,0,false,false,0,false,false,0,false,false,0,false,false,0]
["Création ou animation d'un programme d'enseignement innovant à l'échelle d'une UE",60,null,null,null,null,null,false,false,0,false,false,0,false,false,0,false,false,0,false,false,0]
[]
["Création ou animation d'un programme d'enseignement innovant à l'échelle nationale d'une spécialité",100,null,null,null,null,null,false,false,0,false,false,0,false,false,0,false,false,0,false,false,0]
["Création ou animation d'un programme d'enseignement innovant à l'échelle régionale d'une spécialité",80,null,null,null,null,null,false,false,0,false,false,0,false,false,0,false,false,0,false,false,0]
["Création ou animation d'un programme d'enseignement innovant à l'échelle locale d'une spécialité",60,null,null,null,null,null,false,false,0,false,false,0,false,false,0,false,false,0,false,false,0]

{"sheet":"Points de Jury","index":8,"n_rows":26,"n_cols":22,"rows_kept":26,"cut":false,"hidden":false,"merged":[[5,16,5,18],[5,19,5,21],[3,2,3,6],[4,2,4,6],[1,2,1,3],[2,2,2,3],[5,7,5,9],[5,10,5,12],[5,13,5,15]]}
[null,"NOUVELLE GRILLE SIAPS"]
[null,"Nom",{"$f":"'Part 1 (1-3)'!C2","v":0},null,null,null,"page 8/9"]
[null,"Prénom",{"$f":"'Part 1 (1-3)'!C3","v":0}]
[null,"Discipline (sous-section CNU)",{"$f":"'Part 1 (1-3)'!C4","v":0}]
[null,"UFR",{"$f":"'Part 1 (1-3)'!C5","v":0}]
["POINTS DE JURY: HEURES D'ENSEIGNEMENT",null,"2023-2024","2022-2023","2021-2022","2020-2021","2019-20","2023-2024",null,null,"2022-2023",null,null,"2021-2022",null,null,"2020-2021",null,null,"2019-2020"]
["Cet enseignant produit des enseignements de qualité exceptionnelle",100,null,null,null,null,null,false,{"$f":"H7","v":false},{"$f":"IF(I7=TRUE,B7,0)","v":0},false,{"$f":"K7","v":false},{"$f":"IF(L7=TRUE,B7,0)","v":0},false,{"$f":"N7","v":false},{"$f":"IF(O7=TRUE,B7,0)","v":0},false,{"$f":"Q7","v":false},{"$f":"IF(R7=TRUE,B7,0)","v":0},false,{"$f":"T7","v":false},{"$f":"IF(U7=TRUE,B7,0)","v":0}]
["Cet enseignant fait partie des meilleurs enseignants de l'institution",80,null,null,null,null,null,false,false,0,false,false,0,false,false,0,null,{"$f":"Q8","v":0},{"$f":"IF(R8=TRUE,B8,0)","v":0},null,{"$f":"T8","v":0},{"$f":"IF(U8=TRUE,B8,0)","v":0}]
["Cet enseignant est remarqué pour la qualité de ses enseignements",60,null,null,null,null,null,false,false,0,false,false,0,false,false,0,null,0,0,null,0,0]
["Cet enseignant est apprécié par certains étudiants pour la qualité de ses enseignements",40,null,null,null,null,null,false,false,0,false,false,0,false,false,0,null,0,0,null,0,0]
["Cet enseignant donne globalement satisfaction pour la qualité de ses enseignements",20,null,null,null,null,null,false,false,0,false,false,0,false,false,0,null,0,0,null,0,0]
["Pas de points de jury",0,null,null,null,null,null,false,false,0,false,false,0,false,false,0,null,0,0,null,0,0]
["POINTS DE JURY: RESPONSABILITES PEDAGOGIQUES"]
["Une grande partie de l'action pédagogique de l'institution repose sur cet enseignant",100,null,null,null,null,null,false,false,{"$f":"IF(I14=TRUE,B14,0)","v":0},false,false,{"$f":"IF(L14=TRUE,B14,0)","v":0},false,false,{"$f":"IF(O14=TRUE,B14,0)","v":0},null,0,0,null,0,0]
["Cet enseignant a un engagement déterminant pour l'institution",80,null,null,null,null,null,false,false,0,false,false,0,false,false,0,null,0,0,null,0,0]
["Cet enseignement prend des initiatives significatives pour l'institution",60,null,null,null,null,null,false,false,0,false,false,0,false,false,0,false,false,0,null,0,0]
["Cet enseignant a un engagement qui va au-delà de ses fonctions statutaires",40,null,null,null,null,null,false,false,0,false,false,0,false,false,0,null,0,0,null,0,0]
["Cet enseignant donne satisfaction dans ses fonctions statutaires",20,null,null,null,null,null,false,false,0,false,false,0,false,false,0,null,0,0,null,0,0]
["Pas de points de jury",0,null,null,null,null,null,false,false,0,false,false,0,false,false,0,false,false,0,null,0,0]
["POINTS DE JURY: INNOVATIONS PEDAGOGIQUES"]
["Cet enseignant a un engagement exceptionnel pour l'institution en matière d'innovation et/ou de recherche en pédagogie",100,null,null,null,null,null,false,false,{"$f":"IF(I21=TRUE,B21,0)","v":0},false,false,{"$f":"IF(L21=TRUE,B21,0)","v":0},false,false,{"$f":"IF(O21=TRUE,B21,0)","v":0},false,false,0,false,false,0]
["Cet enseignant a un engagement déterminant pour l'institution en matière d'innovation et/ou de recherche en pédagogie",80,null,null,null,null,null,false,false,0,false,false,0,false,false,0,null,0,0,false,false,0]
["Cet enseignant prend des initiatives intéressantes en matière d'innovation et/ou de recherche en pédagogie",60,null,null,null,null,null,false,false,0,false,false,0,false,false,0,null,0,0,false,false,0]
["Cet enseignant est un bon relai auprès de ses collègues en matière d'innovation et/ou de recherche en pédagogie médicale",40,null,null,null,null,null,false,false,0,false,false,0,false,false,0,null,0,0,false,false,0]
["Cet enseignant a su s'approprier des programmes d'innovation et/ou de recherche en pédagogie portés par l'institution",20,null,null,null,null,null,false,false,0,false,false,0,false,false,0,null,0,0,false,false,0]
["Pas de points de jury",0,null,null,null,null,null,false,false,0,false,false,0,false,false,0,null,0,0,null,0,0]

{"sheet":"Bilan","index":9,"n_rows":24,"n_cols":7,"rows_kept":24,"cut":false,"hidden":false,"merged":[[1,2,1,3],[2,2,2,3],[3,2,3,6],[4,2,4,6],[23,0,27,0]]}
[null,"NOUVELLE GRILLE SIAPS"]
[null,"Nom",{"$f":"'Part 1 (1-3)'!C2","v":0},null,null,null,"page 9/9"]
[null,"Prénom",{"$f":"'Part 1 (1-3)'!C3","v":0}]
[null,"Discipline (sous-section CNU)",{"$f":"'Part 1 (1-3)'!C4","v":0}]
[null,"UFR",{"$f":"'Part 1 (1-3)'!C5","v":0}]
[]
[null,null,"2023-2024","2022-2023","2021-2022","2020-2021","2019-20"]
[]
["Total des heures d'enseignements",null,{"$f":"SUM('Part 1 (1-3)'!C9:C25)+SUM('Part 1 (2-3)'!C9:C23)+SUM('Part 1 (3-3)'!C9:C20)","v":0},{"$f":"SUM('Part 1 (1-3)'!D9:D25)+SUM('Part 1 (2-3)'!D9:D23)+SUM('Part 1 (3-3)'!D9:D20)","v":0},{"$f":"SUM('Part 1 (1-3)'!E9:E25)+SUM('Part 1 (2-3)'!E9:E23)+SUM('Part 1 (3-3)'!E9:E20)","v":0},{"$f":"SUM('Part 1 (1-3)'!F9:F25)+SUM('Part 1 (2-3)'!F9:F23)+SUM('Part 1 (3-3)'!F9:F20)","v":0},{"$f":"SUM('Part 1 (1-3)'!G9:G25)+SUM('Part 1 (2-3)'!G9:G23)+SUM('Part 1 (3-3)'!G9:G20)","v":0}]
["Points de jury heures d'enseignement",null,{"$f":"SUM('Points de Jury'!J7:J12)","v":0},{"$f":"SUM('Points de Jury'!M7:M12)","v":0},{"$f":"SUM('Points de Jury'!P7:P12)","v":0},{"$f":"SUM('Points de Jury'!S7:S12)","v":0},{"$f":"SUM('Points de Jury'!V7:V12)","v":0}]
["Total retenu heures d'enseignement (Max = 200)",null,{"$f":"IF((C9+C10)<200,(C9+C10),200)","v":0},{"$f":"IF((D9+D10)<200,(D9+D10),200)","v":0},0,0,{"$f":"IF((G9+G10)<200,(G9+G10),200)","v":0}]
[]
["Total des responsabilités pédagogiques",null,{"$f":"SUM('Part 2 (1-2)'!J9:J39)+SUM('Part 2 (2-2)'!J9:J27)","v":0},{"$f":"SUM('Part 2 (1-2)'!M9:M39)+SUM('Part 2 (2-2)'!M9:M27)","v":0},{"$f":"SUM('Part 2 (1-2)'!P9:P39)+SUM('Part 2 (2-2)'!P9:P27)","v":0},{"$f":"SUM('Part 2 (1-2)'!S9:S39)+SUM('Part 2 (2-2)'!S9:S27)","v":0},{"$f":"SUM('Part 2 (1-2)'!V9:V39)+SUM('Part 2 (2-2)'!V9:V27)","v":0}]
["Points de jury Responsabilités pédagogiques",null,{"$f":"SUM('Points de Jury'!J14:J19)","v":0},{"$f":"SUM('Points de Jury'!M14:M19)","v":0},{"$f":"SUM('Points de Jury'!P14:P19)","v":0},{"$f":"SUM('Points de Jury'!S14:S19)","v":0},{"$f":"SUM('Points de Jury'!V14:V19)","v":0}]
["Total retenu Responsabilités pédagogiques (Max = 400)",null,{"$f":"IF((C13+C14)<400,(C13+C14),400)","v":0},{"$f":"IF((D13+D14)<400,(D13+D14),400)","v":0},{"$f":"IF((E13+E14)<400,(E13+E14),400)","v":0},0,{"$f":"IF((G13+G14)<400,(G13+G14),400)","v":0}]
[]
["Total des innovations pédagogiques",null,{"$f":"SUM('Part 3 (1-2)'!C9:C13)+SUM('Part 3 (1-2)'!C16)+SUM('Part 3 (1-2)'!J14:J15)+SUM('Part 3(2-2)'!J9:J19)","v":0},{"$f":"SUM('Part 3 (1-2)'!D9:D13)+SUM('Part 3 (1-2)'!D16)+SUM('Part 3 (1-2)'!M14:M15)+SUM('Part 3(2-2)'!M9:M19)","v":0},{"$f":"SUM('Part 3 (1-2)'!E9:E13)+SUM('Part 3 (1-2)'!E16)+SUM('Part 3 (1-2)'!P14:P15)+SUM('Part 3(2-2)'!P9:P19)","v":0},{"$f":"SUM('Part 3 (1-2)'!F9:F13)+SUM('Part 3 (1-2)'!F16)+SUM('Part 3 (1-2)'!S14:S15)+SUM('Part 3(2-2)'!S9:S19)","v":0},{"$f":"SUM('Part 3 (1-2)'!G9:G13)+SUM('Part 3 (1-2)'!G16)+SUM('Part 3 (1-2)'!V14:V15)+SUM('Part 3(2-2)'!V9:V19)","v":0}]
["Points de jury Innovations pédagogiques",null,{"$f":"SUM('Points de Jury'!J21:J26)","v":0},{"$f":"SUM('Points de Jury'!M21:M26)","v":0},{"$f":"SUM('Points de Jury'!P21:P26)","v":0},{"$f":"SUM('Points de Jury'!S21:S26)","v":0},{"$f":"SUM('Points de Jury'!V21:V26)","v":0}]
["Total retenu Innovations pédagogiques (Max = 400)",null,{"$f":"IF((C17+C18)<400,(C17+C18),400)","v":0},{"$f":"IF((D17+D18)<400,(D17+D18),400)","v":0},0,0,0]
[]
["TOTAL RETENU (Max = 1000)",null,{"$f":"C19+C15+C11","v":0},{"$f":"D19+D15+D11","v":0},0,0,0]
[]
[]
["Certifié le ________________\n\nSignature du Candidat                              Signature du Doyen"]

{"sheet":"Listes","index":10,"n_rows":81,"n_cols":5,"rows_kept":81,"cut":false,"hidden":true,"merged":[]}
["[42 - Morphologie et morphogenèse]",null,"PHU",null,"Amiens"]
["4201 - Anatomie",null,"MCU-PH",null,"Angers"]
["4202 - Histologie, Embryologie et Cytogénétique",null,"PU-PH",null,"Besançon"]
["4203 - Anatomie et cytologie pathologiques",null,null,null,"Bordeaux"]
[null,null,null,null,"Brest"]
["[43 - Biophysique et imagerie Médecine]",null,null,null,"Caen"]
["4301 - Biophysique et médecine nucléaire",null,null,null,"Clermont-Ferrand"]
["4302 - Radiologie et imagerie Médecine",null,null,null,"Dijon"]
[null,null,null,null,"Grenoble"]
["[44 - Biochimie, biologie cellulaire et moléculaire, physiologie et nutrition]",null,null,null,"La Réunion"]
["4401 - Biochimie et biologie moléculaire",null,null,null,"Lille"]
["4402 - Physiologie",null,null,null,"Lille Catho"]
["4403 - Biologie cellulaire",null,null,null,"Limoges"]
["4404 - Nutrition",null,null,null,"Lyon"]
[null,null,null,null,"Marseille"]
["[45 - Microbiologie, maladies transmissibles et hygiène]",null,null,null,"Montpellier"]
["4501 - Bactériologie - virologie ; hygiène hospitalière (2 options)",null,null,null,"Nancy"]
["4502 - Parasitologie et mycologie",null,null,null,"Nantes"]
["4503 - Maladies infectieuses ; maladies tropicales (2 options)",null,null,null,"Nice"]
[null,null,null,null,"Paris Cité"]
["[46 - Santé publique, environnement et société]",null,null,null,"Paris Nord"]
["4601 - Epidémiologie, économie de la santé et prévention",null,null,null,"Paris-Est Créteil"]
["4602 - Médecine et santé au travail",null,null,null,"Paris-Saclay"]
["4603 - Médecine légale et droit de la santé",null,null,null,"Pointe à Pitre"]
["4604 - Biostastistiques, informatique Médicale et technologies de communication",null,null,null,"Poitiers"]
["4605 - Epistémologie clinique",null,null,null,"Reims"]
[null,null,null,null,"Rennes"]
["[47 - Cancérologie, génétique, hématologie, immunologie]",null,null,null,"Rouen"]
["4701 - Hématologie ; transfusion (2 options)",null,null,null,"Saint-Etienne"]
["4702 - Cancérologie ; radiothérapie (2 options)",null,null,null,"Sorbonne"]
["4703 - Immunologie",null,null,null,"Strasbourg"]
["4704 - Génétique",null,null,null,"Toulouse Purpan"]
[null,null,null,null,"Toulouse Rangueil"]
["[48 - Anesthésiologie, réanimation, médecine d'urgence, pharmacologie et thérapeutique]",null,null,null,"Tours"]
["4801 - Anesthésiologie-réanimation ; médecine d'urgence (2 options)",null,null,null,"Versailles Saint-Quentin"]
["4802 - Réanimation ; médecine d'urgence (2 options)"]
["4803 - Pharmacologie fondamentale ; pharmacologie clinique ; addictologie (3 options)"]
["4804 - Thérapeutique ; médecine d'urgence ; addictologie (3 options)"]
["4805 - Médecine d'urgence"]
[]
["[49 - Pathologie nerveuse et musculaire, pathologie mentale, handicap et rééducation]"]
["4901 - Neurologie"]
["4902 - Neurochirurgie"]
["4903 - Psychiatrie d'adultes ; addictologie (2 options)"]
["4904 - Pédopsychiatrie ; addictologie (2 options)"]
["4905 - Médecine physique et de réadaptation"]
[]
["[50 - Pathologie ostéo-articulaire, dermatologie et chirurgie plastique]"]
["5001 - Rhumatologie"]
["5002 - Chirurgie orthopédique et traumatologique"]
["5003 - Dermato-vénéréologie"]
["5004 - Chirurgie plastique, reconstructrice et esthétique ; brûlologie (2 options)"]
[]
["[51 - Pathologie cardiorespiratoire et vasculaire]"]
["5101 - Pneumologie ; addictologie (2 options)"]
["5102 - Cardiologie"]
["5103 - Chirurgie thoracique et cardiovasculaire"]
["5104 - Chirurgie vasculaire ; médecine vasculaire (2 options)"]
[]
["[52 - Maladies des appareils digestif et urinaire]"]
["5201 - Gastroentérologie ; hépatologie ; addictologie (3 options)"]
["5202 - Chirurgie digestive"]
["5203 - Néphrologie"]
["5204 - Urologie"]
[]
["[53 - Médecine interne, gériatrie et chirurgie générale]"]
["5301 - Médecine interne ; gériatrie et biologie du vieillissement ; médecine générale ; addictologie (4 options)"]
["5302 - Chirurgie générale"]
["5303 - Médecine générale"]
[]
["[54 - Développement et pathologie de l'enfant, gynécologie-obstétrique, endocrinologie et reproduction]"]
["5401 - Pédiatrie"]
["5402 - Chirurgie infantile"]
["5403 - Gynécologie-obstétrique ; gynécologie Médicale (2 options)"]
["5404 - Endocrinologie, diabète et maladies métaboliques ; gynécologie Médicale (2 options)"]
["5405 - Biologie et médecine du développement et de la reproduction ; gynécologie Médicale (2 options)"]
[]
["[55 - Pathologie de la tête et du cou]"]
["5501 - Oto-rhino-laryngologie"]
["5502 - Ophtalmologie"]
["5503 - Chirurgie maxillo-faciale et stomatologie"]